Cogmind - Beta 11.1 @@@ ROGUE MODE // 2022.06.07 @ 20:17:21 Player: Terminus Result: Destroyed by D-53 Grenadier with Mini Grenade Launcher Performance ------------- Evolutions (2) 1000 Regions Visited (6) 1200 Robots Destroyed (122) 610 Value Destroyed (3850) 3850 Prototype IDs (10) 200 Alien Tech Used (0) 0 Bonus (1061) 1061 TOTAL SCORE: 7921 Bonus ------- High Alert Combat Kills 741 Follower Combat Kills 539 Friendly Fire -219 Cogmind --------- Core Integrity 0/550 Matter 300/300 Energy 200/200 System Corruption 18% Temperature Cool (0) Movement Walking (200) Ox1 Location -8/Storage Parts ------- > --- POWER (1) -------- Cold Fusion Reactor > --- PROPULSION (3) --- Titanium Leg Titanium Leg > --- UTILITY (5) ------ High-capacity Storage Unit Hardened Light Armor Plating > --- WEAPON (2) ------- Heavy Particle Cannon > --- INVENTORY (20) --- Improved Ion Engine Improved Ion Engine Improved Heat Sink Improved Heat Sink Improved Heat Sink Improved Heat Sink Experimental Sensor Array Improved Signal Interpreter Hacking Suite Heavy Particle Gun Advanced Beam Cannon Advanced Beam Cannon Advanced Beam Cannon Mini Grenade Launcher Plasma Cutter Peak State ------------ > --- POWER ------------ Improved Ion Engine > --- PROPULSION ------- Titanium Leg Titanium Leg Titanium Leg > --- UTILITY ---------- Advanced Heat Sink Advanced Heat Sink High-capacity Storage Unit Hardened Medium Armor Plating Hardened Medium Armor Plating > --- WEAPON ----------- Heavy Particle Cannon Heavy Particle Cannon > --- INVENTORY -------- Improved Ion Engine Improved Ion Engine Titanium Leg Titanium Leg Titanium Leg Improved Heat Sink Improved Heat Sink Improved Heat Sink Experimental Sensor Array Improved Signal Interpreter Light Armor Plating Heavy Armor Plating Hacking Suite Heavy Particle Gun Heavy Particle Gun Heavy Particle Gun Heavy Particle Cannon Mini Grenade Launcher Plasma Cutter [Rating: 40] Favorites ----------- Power Improved Ion Engine Engine Improved Ion Engine Reactor Cold Fusion Reactor Propulsion Aluminum Leg Leg Aluminum Leg Utility Improved Heat Sink Device Improved Heat Sink Storage High-capacity Storage Unit Protection Heavy Armor Plating Weapon Beam Rifle Energy Gun Beam Rifle Energy Cannon Heavy Particle Cannon Ballistic Gun Assault Rifle Launcher Mini Grenade Launcher Build | -11 -10 -10 -10 -9 -8 -8 ------- Run | Scr Mat Min Exi Min Mat Sto Slots Evolved 4 | . . . . . 4 . Power . | . . . . . . . Propulsion 1 | . . . . . 1 . Utility 3 | . . . . . 3 . Weapon . | . . . . . . . Parts Attached 114 | 6 24 4 . . 31 49 Power 12 | 1 1 1 . . 3 6 Engine 10 | 1 1 1 . . 3 4 Core . | . . . . . . . Reactor 2 | . . . . . . 2 Propulsion 33 | 2 12 . . . 8 11 Treads . | . . . . . . . Leg 33 | 2 12 . . . 8 11 Wheel . | . . . . . . . Hover . | . . . . . . . Flight . | . . . . . . . Utility 40 | 1 8 1 . . 17 13 Device 17 | . 5 1 . . 7 4 Storage 6 | 1 2 . . . 2 1 Processor . | . . . . . . . Hackware . | . . . . . . . Protection 17 | . 1 . . . 8 8 Artifact . | . . . . . . . Weapon 29 | 2 3 2 . . 3 19 Energy Gun 11 | 1 3 1 . . 1 5 Energy Cannon 13 | . . . . . 2 11 Ballistic Gun 1 | 1 . . . . . . Ballistic Cannon . | . . . . . . . Launcher 4 | . . 1 . . . 3 Special Weapon . | . . . . . . . Impact Weapon . | . . . . . . . Slashing Weapon . | . . . . . . . Piercing Weapon . | . . . . . . . Special Melee Weapon . | . . . . . . . Unidentified Prototypes 5 | . . . . . 2 3 Parts Lost 21 | . . . . . . 21 Power 3 | . . . . . . 3 Propulsion 5 | . . . . . . 5 Utility 9 | . . . . . . 9 Weapon 4 | . . . . . . 4 Highest Loss Streak 9 | . . . . . . 9 To Critical Strikes . | . . . . . . . Average Slot Usage (%) 94 | . 97 100 100 100 90 92 Engine 10 | . 14 14 14 14 8 6 Leg 27 | . 28 28 28 28 26 25 Device 15 | . 10 14 14 14 17 17 Storage 11 | . 14 14 14 14 9 9 Protection 5 | . 1 . . . 10 12 Energy Gun 15 | . 23 27 28 28 6 2 Energy Cannon 6 | . . . . . 11 14 Naked Turns . | . . . . . . . Heaviest Build 79 | 13 32 34 34 34 76 79 Greatest Support 51 | 20 20 20 20 20 47 51 Greatest Overweight (x) 2 | 2 1 1 1 1 2 2 Average Overweight (x) 1 | . . 1 1 1 1 1 Largest Inventory Capacity 20 | 8 15 15 15 15 20 20 Average Capacity 16 | 6 10 15 15 15 19 20 Most Carried 20 | 2 14 15 15 15 20 20 Average Carried 15 | . 9 14 15 15 19 16 Final Capacity 20 | 8 15 15 15 15 20 20 Final Carried 20 | 2 14 15 15 15 20 15 Class Distribution -------------------- 56% | Scavenger-Mutant 39% | Mutant 3% | Commander-Mutant Dominant Class ---------------- Mutant | -10/Materials Scavenger-Mutant | -10/Mines Scavenger-Mutant | -10/Exiles Scavenger-Mutant | -9/Mines Scavenger-Mutant | -8/Materials Mutant | -8/Storage Resources | -11 -10 -10 -10 -9 -8 -8 ----------- Run | Scr Mat Min Exi Min Mat Sto Matter Collected 1483 | 194 377 99 . 5 296 512 Remotely . | . . . . . . . Salvage Created 4831 | . 812 88 . 165 1380 2386 Parts 251 | . 51 10 . 10 56 124 Haulers Intercepted 11 | . 2 . . . 3 6 Recyclers Shooed 3 | . 1 . . . . 2 Parts Field Recycled . | . . . . . . . Retrieved Matter . | . . . . . . . Parts Self-Destructed . | . . . . . . . Prevented . | . . . . . . . Kills | -11 -10 -10 -10 -9 -8 -8 ------- Run | Scr Mat Min Exi Min Mat Sto Combat Hostiles Destroyed 86 | . 17 5 . 6 18 40 Guns 32 | . 17 2 . 6 5 2 Cannons 40 | . . . . . 13 27 AOE 12 | . . 3 . . . 9 Classes Destroyed 14 | . 7 1 . . 3 3 Worker 7 | . 1 . . . 1 5 Builder 3 | . 1 . . . . 2 Tunneler 1 | . . . . . 1 . Hauler 11 | . 2 . . . 3 6 Recycler 5 | . . . . . 3 2 Mechanic 1 | . . . . . . 1 Operator 3 | . 1 . . . . 2 Watcher 6 | . 2 . . . 2 2 Swarmer 13 | . 3 4 . 3 . 3 Grunt 53 | . 14 . . 3 12 24 Brawler 3 | . . . . . 1 2 Duelist 1 | . . . . . . 1 Protector 1 | . . . . . . 1 Sentry 16 | . . 1 . . 5 10 Best Kill Streak 15 | . 5 3 . 6 4 15 Combat Bots Only 11 | . 5 3 . 6 3 11 Max Kills in Single Turn 4 | . 2 3 . 1 2 4 Gunslinging 1 | . 1 . . . . 1 Exploded 3 | . . 3 . . . 2 Melee . | . . . . . . . Uniques/NPCs Destroyed . | . . . . . . . Combat | -11 -10 -10 -10 -9 -8 -8 -------- Run | Scr Mat Min Exi Min Mat Sto Damage Taken 6146 | . 508 74 . 50 995 4519 Core 718 | . 114 42 . 9 48 505 Absorbed by Shields . | . . . . . . . Regen/Repaired (Parts) 976 | . 47 . . . 653 276 Core Remaining (%) 67 | 100 . . . 34 . . Volleys Fired 289 | . 72 6 . 6 82 123 Largest 2 | . 2 2 . 2 2 2 Hottest 150 | . 112 112 . 112 150 150 Shots Fired 567 | . 144 11 . 12 161 239 Gun 234 | . 144 10 . 12 54 14 Cannon 323 | . . . . . 107 216 Launcher 10 | . . 1 . . . 9 Special . | . . . . . . . Kinetic 28 | . 28 . . . . . Thermal 529 | . 116 10 . 12 161 230 Explosive 10 | . . 1 . . . 9 Electromagnetic . | . . . . . . . Robot Hit Streak 20 | . 7 7 . 4 14 20 Robot Miss Streak 6 | . 6 1 . 1 3 3 Penetration Max . | . . . . . . . Secondary Targets 2 | . 1 . . . . 1 Max Gunslinging Chain 1 | . 1 . . . . 1 Shots Hit Robots 365 | . 81 8 . 8 103 165 Core Hits 190 | . 35 8 . 6 46 95 Critical Kills 2 | . . . . . . 2 Critical Parts Destroyed . | . . . . . . . Critical Strikes 14 | . 2 . . 3 7 2 Burn 12 | . 2 . . 3 7 . Meltdown 2 | . . . . . . 2 Melee Attacks . | . . . . . . . Impact . | . . . . . . . Slashing . | . . . . . . . Piercing . | . . . . . . . Sneak Attacks . | . . . . . . . Combat Hostiles . | . . . . . . . Follow-up Attacks . | . . . . . . . Damage Inflicted 9764 | . 1129 310 . 121 2470 5734 Guns 2243 | . 1118 116 . 120 675 214 Cannons 5356 | . . . . . 1715 3641 Explosions 1980 | . . 140 . . . 1840 Melee . | . . . . . . . Ramming 185 | . 11 54 . 1 80 39 Kinetic 207 | . 207 . . . . . Thermal 7392 | . 911 116 . 120 2390 3855 Explosive 1980 | . . 140 . . . 1840 Electromagnetic . | . . . . . . . Impact . | . . . . . . . Slashing . | . . . . . . . Piercing . | . . . . . . . Highest Corruption 18 | . 2 2 2 2 . 18 Average Corruption 3 | . 2 2 2 2 . 18 Corruption Purged . | . . . . . . . Corruption Blocked . | . . . . . . . Effects 76 | . 26 24 3 4 . 19 Message Errors 24 | . 7 12 . . . 5 Matter Fused 12 | . 3 6 1 . . 2 Heat Flow Errors 11 | . 3 1 1 1 . 5 Energy Discharges 12 | . 5 3 . 1 . 3 Parts Rejected 2 | . 1 . . . . 1 Data Loss (minor) 4 | . 1 1 . 1 . 1 Data Loss (major) 5 | . 2 1 1 1 . . Misfires 4 | . 2 . . . . 2 Weapon Failures 2 | . 2 . . . . . Overload Shots . | . . . . . . . Overflow Damage 178 | . . . . . 8 170 Projectiles 112 | . . . . . 8 104 Explosions 66 | . . . . . . 66 Melee . | . . . . . . . Knockbacks 2 | . . 1 . . . 1 Impact 2 | . . 1 . . . 1 Kinetic . | . . . . . . . Secondary . | . . . . . . . Self-Inflicted Damage 325 | . . . . . . 325 Shots 8 | . . . . . . 8 Rammed . | . . . . . . . Targets Rammed 32 | . 3 11 . 1 8 9 Kicked 32 | . 3 11 . 1 8 9 Crushed . | . . . . . . . Highest Temperature 281 | . 264 138 95 77 281 180 Average Temperature 60 | . 67 29 62 30 77 33 Received Heat Transfer 2445 | . 246 15 . 6 576 1602 Effects 4 | . . . . . 4 . Interference 4 | . . . . . 4 . Siege Activations . | . . . . . . . Robots Corrupted . | . . . . . . . Combat Hostiles . | . . . . . . . Parts Fried . | . . . . . . . Impact Corruptions . | . . . . . . . Robots Melted 4 | . . . . . . 4 Combat Hostiles 2 | . . . . . . 2 Parts Melted 39 | . 7 . . 2 13 17 Heat Transferred 13906 | . 2372 296 . 518 4477 6243 Parts Sabotaged . | . . . . . . . Parts Stolen . | . . . . . . . Parts Stripped . | . . . . . . . Power Chain Reactions . | . . . . . . . Missiles Intercepted . | . . . . . . . Alert | -11 -10 -10 -10 -9 -8 -8 ------- Run | Scr Mat Min Exi Min Mat Sto Peak Influence 1579 | . 342 82 . 163 546 1579 Initial 210 | . . 56 . . 63 210 Average 277 | . 204 35 . 18 225 743 Maximum Alert Level 4 | . 1 . . . 2 4 Low Security (%) 52 | 100 35 100 . 100 57 . Level 1 23 | . 64 . . . 17 21 Level 2 15 | . . . . . 24 37 Level 3 1 | . . . . . . 8 Level 4 6 | . . . . . . 32 Level 5 . | . . . . . . . High Security . | . . . . . . . Max Security . | . . . . . . . Squads Dispatched 24 | . 6 . . . 4 14 Investigation 8 | . 5 . . . 1 2 Extermination . | . . . . . . . Reinforcement 6 | . 1 . . . 2 3 Assault 7 | . . . . . 1 6 Garrison 3 | . . . . . . 3 Intercept . | . . . . . . . Searches Triggered . | . . . . . . . Construction Impeded 1 | . . . . . 1 . Haulers Reinforced . | . . . . . . . Active Scanning Responses . | . . . . . . . Cargo Convoy Interrupts . | . . . . . . . Stealth | -11 -10 -10 -10 -9 -8 -8 --------- Run | Scr Mat Min Exi Min Mat Sto Distress Signals 6 | . 2 . . . 2 2 Communications Jammed . | . . . . . . . Distress Signals . | . . . . . . . Times Spotted 164 | . 29 8 . 7 33 87 Peak Tracking Total 19 | . 5 3 . 6 4 19 Tactical Retreats 7 | . 3 . . . . 4 Traps | -11 -10 -10 -10 -9 -8 -8 ------- Run | Scr Mat Min Exi Min Mat Sto Traps Triggered 4 | . 2 . . . . 2 Indirectly . | . . . . . . . Trap Hack Attempts . | . . . . . . . Triggered . | . . . . . . . Disarmed . | . . . . . . . Reprogrammed . | . . . . . . . Reused . | . . . . . . . Traps Extracted . | . . . . . . . Installed . | . . . . . . . Triggered . | . . . . . . . Machines | -11 -10 -10 -10 -9 -8 -8 ---------- Run | Scr Mat Min Exi Min Mat Sto Machines Disabled 15 | . 1 . . 1 4 9 Max in Single Turn 1 | . 1 . . . 1 1 Garrison Access 2 | . . . . . 1 1 Machines Sabotaged . | . . . . . . . Garrisons Compromised . | . . . . . . . Overloaded Fab Kills . | . . . . . . . Hacking | -11 -10 -10 -10 -9 -8 -8 --------- Run | Scr Mat Min Exi Min Mat Sto Machines Accessed 26 | . 10 . 1 . 10 5 Terminals 16 | . 7 . . . 6 3 Fabricators . | . . . . . . . Repair Stations 4 | . 1 . . . 2 1 Recycling Units 2 | . 2 . . . . . Scanalyzers 1 | . . . . . 1 . Garrison Access 2 | . . . . . 1 1 Total Hacks 102 | . 32 . 5 . 50 15 Successful 61 | . 13 . 5 . 35 8 Failed 40 | . 18 . . . 15 7 Catastrophic 4 | . 3 . . . 1 . Database Lockouts 1 | . 1 . . . . . Manual 52 | . 25 . . . 22 5 Terminals 62 | . 28 . . . 26 8 Fabricators . | . . . . . . . Repair Stations 25 | . 2 . . . 20 3 Recycling Units 2 | . 2 . . . . . Scanalyzers 2 | . . . . . 2 . Garrison Access 6 | . . . . . 2 4 Terminal Hacks 22 | . 5 . 5 . 9 3 Record 5 | . . . 5 . . . Robot Analysis 2 | . 1 . . . 1 . Prototype ID Bank 2 | . 1 . . . 1 . Open Door 1 | . . . . . . 1 Branch Access Points 1 | . . . . . 1 . Terminal Index 3 | . 1 . . . 1 1 Scanalyzer Index 1 | . . . . . 1 . Alert Level 2 | . . . . . 1 1 Recall Reinforcements 1 | . . . . . 1 . Hauler Manifests 2 | . 1 . . . 1 . Zone Layout 2 | . 1 . . . 1 . Fabricator Hacks . | . . . . . . . Repair Station Hacks 23 | . 2 . . . 18 3 Scan Component 12 | . 1 . . . 9 2 Repair 11 | . 1 . . . 9 1 Recycling Unit Hacks . | . . . . . . . Scanalyzer 2 | . . . . . 2 . Insert Component 1 | . . . . . 1 . Analyze 1 | . . . . . 1 . Garrison Access Hacks . | . . . . . . . Unauthorized Hacks 14 | . 6 . . . 6 2 Terminals 12 | . 4 . . . 6 2 Assimilate 1 | . . . . . 1 . Botnet 11 | . 4 . . . 5 2 Fabricators . | . . . . . . . Repair Stations . | . . . . . . . Recycling Units 2 | . 2 . . . . . Tunnel 2 | . 2 . . . . . Scanalyzers . | . . . . . . . Garrison Access . | . . . . . . . Data Cores Recovered 1 | . 1 . . . . . Used . | . . . . . . . Hacking Detections 22 | . 8 . . . 9 5 Full Trace Events 5 | . 2 . . . 1 2 Feedback Events . | . . . . . . . Feedback Blocked . | . . . . . . . Robot Schematics Acquired . | . . . . . . . Robots Built . | . . . . . . . Authchips . | . . . . . . . Time . | . . . . . . . Total Robot Build Rating . | . . . . . . . Part Schematics Acquired 1 | . . . . . 1 . Parts Built . | . . . . . . . Authchips . | . . . . . . . Time . | . . . . . . . Total Part Build Rating . | . . . . . . . Parts Repaired 11 | . 1 . . . 9 1 Time 370 | . 32 . . . 300 38 Parts Recycled . | . . . . . . . Recycled Matter . | . . . . . . . Retrieved Matter . | . . . . . . . Retrieved Components . | . . . . . . . Parts Scanalyzed 1 | . . . . . 1 . Part Schematics Acquired 1 | . . . . . 1 . Parts Damaged . | . . . . . . . Bothacking | -11 -10 -10 -10 -9 -8 -8 ------------ Run | Scr Mat Min Exi Min Mat Sto Used RIF Installer . | . . . . . . . Robots Hacked . | . . . . . . . Non-combat . | . . . . . . . Combat . | . . . . . . . Robot Hacks Applied . | . . . . . . . Relay Couplers Released 3 | . . . . . 2 1 Machine Destruction 3 | . . . . . 2 1 Fabnet Peak Effective % . | . . . . . . . Robots Rewired . | . . . . . . . Allies Hacked . | . . . . . . . Hacks Repelled . | . . . . . . . Allies | -11 -10 -10 -10 -9 -8 -8 -------- Run | Scr Mat Min Exi Min Mat Sto Total Allies 17 | . . 5 . . . 12 Largest Group 10 | . . 5 5 3 2 10 Highest-Rated Group 173 | . . 86 86 40 24 173 Highest-Rated Ally 31 | . . 31 31 16 16 31 Total Orders . | . . . . . . . Ally Attacks 124 | . . . . 6 33 85 Total Damage 1507 | . . . . 54 385 1068 Kills 17 | . . . . 1 4 12 Allies Corrupted . | . . . . . . . Allies Melted . | . . . . . . . Intel | -11 -10 -10 -10 -9 -8 -8 ------- Run | Scr Mat Min Exi Min Mat Sto Robot Analysis Total 2 | . 1 . . . 1 . Derelict Logs Recovered 1 | . . 1 . . . . Drone Launches . | . . . . . . . Drone Recoveries . | . . . . . . . Exploration | -11 -10 -10 -10 -9 -8 -8 ------------- Run | Scr Mat Min Exi Min Mat Sto Turns Passed 8090 | 62 1627 1862 304 164 2447 1624 Spaces Moved 3214 | 60 730 898 159 60 779 528 Core 34 | 34 . . . . . . Treads . | . . . . . . . Legs 3180 | 26 730 898 159 60 779 528 Wheels . | . . . . . . . Hover . | . . . . . . . Flight . | . . . . . . . Fastest Speed 50 | 50 120 190 190 190 190 193 Average Speed 195 | 87 172 190 190 190 227 206 Slowest Speed 270 | 150 190 190 190 190 260 270 Overloaded Moves . | . . . . . . . Propulsion Burnouts . | . . . . . . . Robots Hopped . | . . . . . . . Cave-ins Triggered 1 | . . . . . . 1 Exploration Rate (%) 60 | 4 98 99 53 21 58 89 Regions Visited 6 Branch Regions 4 Pre-discovered Areas 4 | . 2 1 1 . . . Known Exits Taken 1 | . . . . . 1 . Unknown Exits Taken 5 | 1 1 1 1 1 . . Scrap Searched 3 | . . 1 . 2 . . Spaces Dug 15 | . . . . . 15 . Terrain Destroyed 103 | . . 4 . . 33 66 Melee . | . . . . . . . Projectile 50 | . . . . . 33 17 AOE 53 | . . 4 . . . 49 Terrain Rammed . | . . . . . . . Walls Destroyed . | . . . . . . . Machines Disabled . | . . . . . . . Actions | -11 -10 -10 -10 -9 -8 -8 --------- Run | Scr Mat Min Exi Min Mat Sto Total 4430 | 67 962 1034 161 98 1290 818 Wait 642 | . 88 107 3 32 345 67 Move 3208 | 59 729 897 158 59 778 528 Hop . | . . . . . . . Pick Up 65 | 2 19 4 . . 23 17 Fast Attach 37 | 6 6 1 . . 10 14 Attach 23 | . . . . . 8 15 Detach 1 | . . . . . 1 . Swap 54 | . 18 3 . . 13 20 Drop 79 | . 27 5 . . 22 25 Fire 289 | . 72 6 . 6 82 123 Melee . | . . . . . . . Ram . | . . . . . . . Kick 32 | . 3 11 . 1 8 9 Crush . | . . . . . . . Escape Stasis . | . . . . . . . Rewire . | . . . . . . . Trap . | . . . . . . . Miscellaneous . | . . . . . . . Route ------- -11/Scrapyard -10/Materials (discovered 4 exits: [*Mat x3] / [*Min]) -10/Mines (discovered 3 exits: [*Mat x2] / *Exi) -10/Exiles -9/Mines -8/Materials (discovered 3 exits: [*Fac x2] / *Sto) -8/Storage History --------- Turn | Location | Event 3 | -11/Scrapyard | Discovered new exit (range 15) 63 | -11/Scrapyard | Entered Materials 236 | -10/Materials | Discovered new exit (range 10) 317 | -10/Materials | Build established: Mutant 392 | -10/Materials | Discovered new exit (range 11) 499 | -10/Materials | Central database locked down 740 | -10/Materials | Discovered new exit (range 12) 1175 | -10/Materials | Discovered new exit (range 16) 1342 | -10/Materials | Build established: Scavenger-Mutant 1413 | -10/Materials | Repaired Beam Rifle 1690 | -10/Materials | Entered Mines 1694 | -10/Mines | Joined a pair of Derelicts in attacking an 0b10 outpost 1710 | -10/Mines | Met a Derelict bent on vengeance 1847 | -10/Mines | Assembled infested the area 2282 | -10/Mines | Core integrity fell below 50% 2384 | -10/Mines | Learned location of Storage (-8) 2400 | -10/Mines | Discovered new exit (range 5) 2571 | -10/Mines | Learned Materials trap positions 2589 | -10/Mines | Assisted by bots powering up and referring to "LRC-V3" 2627 | -10/Mines | Discovered new exit (range 10) 3132 | -10/Mines | Found a damaged Exp. Sensor Array with a note attached 3136 | -10/Mines | Found Prototype Device 3540 | -10/Mines | Discovered new exit (range 5) 3552 | -10/Mines | Entered Exiles 3552 | -10/Exiles | Accompanied by 5 allies 3582 | -10/Exiles | Led the pair of lost Derelicts to a safe place 3600 | -10/Exiles | Met 8R-AWN 3630 | -10/Exiles | Met EX-HEX 3736 | -10/Exiles | Met EX-DEC 3770 | -10/Exiles | Learned location of Zion (-7) 3835 | -10/Exiles | Discovered new exit (range 10) 3856 | -10/Exiles | Entered Mines 3856 | -9/Mines | Accompanied by 3 allies 3857 | -9/Mines | YI-UF0 nonchalantly dropped a Grenade Launcher on the ground 3958 | -9/Mines | Excavation squad dispatched 3958 | -9/Mines | A large section of the Mines collapsed 4008 | -9/Mines | Discovered new exit (range 4) 4020 | -9/Mines | Entered Materials 4020 | -8/Materials | Accompanied by 2 allies 4020 | -8/Materials | Evolved 4 slots: Propulsion x1, Utility x3 4021 | -8/Materials | Loaded intel: 12 trap records 4269 | -8/Materials | Identified exit to Storage 4515 | -8/Materials | Repaired Imp. Ion Engine 4554 | -8/Materials | Repaired Imp. Heat Sink 5054 | -8/Materials | Discovered new exit (range 10) 5358 | -8/Materials | Discovered new exit (range 17) 5581 | -8/Materials | Repaired Hvy. Armor Plating 5614 | -8/Materials | Repaired Imp. Aluminum Leg 5644 | -8/Materials | Repaired Aluminum Leg 5692 | -8/Materials | Repaired Imp. Heat Sink 5719 | -8/Materials | Repaired Lgt. Armor Plating 5752 | -8/Materials | Repaired Imp. Ion Engine 5897 | -8/Materials | Repaired Hvy. Armor Plating 6115 | -8/Materials | Build established: Mutant 6144 | -8/Materials | Identified Exp. Sensor Array 6467 | -8/Materials | Entered Storage 7241 | -8/Storage | Met a pair of Derelict thieves 7289 | -8/Storage | Garrison activated, responded to threat 7558 | -8/Storage | Core integrity fell below 50% 7601 | -8/Storage | Lost 9 parts (2p2n3u2w) 7604 | -8/Storage | Destroyed 11 combat bots 7635 | -8/Storage | Repaired Hvy. Armor Plating 7676 | -8/Storage | Crushed by falling debris 7676 | -8/Storage | System corruption reached 10% 7707 | -8/Storage | Lost 5 parts (1p1n2u1w) 7707 | -8/Storage | Core integrity fell below 20% 7783 | -8/Storage | Assisted by bots powering up and referring to "LRC-V3" 8067 | -8/Storage | First assault squad dispatched 8091 | -8/Storage | Destroyed by D-53 Grenadier with Mini Grenade Launcher Last Messages --------------- 08082_ L-31 Rogue destroyed. 08082_ Aluminum Leg destroyed. 08083_ The unstable cave ceiling collapses. 08084_ OUX13TZ|S%MMV 08086_ D-53 Grenadier destroyed. 08088_ The unstable cave ceiling collapses. 08088_ D-53 Grenadier destroyed. 08089_ Hrd. Light Armor Plating destroyed. 08089_ L-31 Rogue destroyed. 08090_ Adv. Beam Cannon destroyed. 08090_ L-31 Rogue destroyed. 08090_ I-25 Savior destroyed. 08091_ The unstable cave ceiling collapses. Map ----- +----------------------------------------------------+ | ???????????????????????????????????? | | ???????????????????????????????????? | | ???????????????????????????????????? | | ???????????????????????????????????? | | ???????????????????????????????????? | | ???????????????????????????????????? | | ???????????????????????????????????? | | ???????????????????????????????????? | | ???????????????????????????????????? | | ???????????????????????? ????????? | | ???????????????????????? ????????? | | ???????????????????????? #???????? | | ???????????????????????+ +???????? | | ???????????????????????#%%%#???????? | | ???????????????????????# ^#???????? | | ???????????????????????# #???????? | | ???????????????????????# #???????? | | ###??##?#??????????????# #???????? | | #??T"# ###############Ym #?####### | | # [!=* # # #?T # | | # """%""" # o """="# # ? | | # """!""" # """ Y"! !%g # """? | | # """=""" # """ """% # % """? | | # # """ m g * """# | | # # """ * g # | | ! # # """= d@d "T"#?? | | # % # l ##????? | | #######+#########; #????? | | % % % = ##????? | | % * !! ##?????? | | %[%%[ =%* #??????? | | ###[ " ####=#### #??????? | | # """ ####%###### +####?????? | | # " =# !=%!=* # #?????? | | # = %[[""" # #?????? | | # % R" # """"" #?????? | | # "" = """ # """"" #?????? | | # """ ! # """"" #?????? | | # ""[%% = """ # = #?????? | | # [ # """ # % #?????? | | # = # """ # #?????? | | # ### ######??????? | | ### = # ### ###??###########??? | | ### !% %=%" #??##?????# #??? | | ##=% % [ G"#?????????# "" #??? | | [## [%= [ "" #?????????# "T #??? | | ## " ############## "" = #??? | | ##=%=" #??? | | + " #??? | | # * [ #??? | +----------------------------------------------------+ Best States ------------- Heat Dissipation 69 Energy Generation 17 Energy Capacity 265 Matter Stores 300 Matter Capacity 300 Sight Range 16 Terrain Scan Density 10 Armor Coverage 600 Evasion (%) 55 Item Schematics ----------------- Exp. Sensor Array | -8/Materials | Scanalyzed Robot Schematics ------------------ None Fabricated ------------ Nothing Alien Tech Used ----------------- None Achievements -------------- None Challenges ------------ None Game ------ Seed HybridHeatJammer Manual? 0 Play Time 00:37:27 Cumulative 1498.0 hours Start 2022.06.07 @ 19:39:43 End 2022.06.07 @ 20:17:21 Sessions 1 Manual Loads 0 Difficulty Rogue Special Mode None Game No. 529 Rogue 529 Adventurer 0 Explorer 0 Win Type - Total 106 Types 22/12/44/6/1/2/17/1/1 Lore% 97 Gallery% 96 Achievement% 86 Wizard Run 0 Options --------- ASCII 0 Keyboard 0 Movement Numpad Keybinds 0 Fullscreen 1 Font 18/SmallcapsGlow Map View 76x50 Tactical HUD 1 Map Filters NONE Filters NONE Steam 1 RUN: dddb206a-9866-4cc5-b14b-a799907e6047